[Event "Early-Titled-Tuesday-Blitz-December-26-2023"]
[Site "Chess.com"]
[Date "2023.12.26"]
[Round "2"]
[White "SCIM"]
[Black "AnaKuchava"]
[Result "1/2-1/2"]
[WhiteElo "2497"]
[BlackElo "2211"]
[TimeControl "180+1"]
[EndTime "8:17:41 PST"]
[Termination "Game drawn by repetition"]

1. Nf3 {[%clk 0:03:00.9]} 1... d5 {[%clk 0:02:59.4]} 2. g3 {[%clk 0:02:59.4]}
2... Nf6 {[%clk 0:02:55.8]} 3. Bg2 {[%clk 0:03:00.3]} 3... c5 {[%clk 0:02:44.1]}
4. c4 {[%clk 0:02:59.1]} 4... d4 {[%clk 0:02:39.1]} 5. O-O {[%clk 0:02:58]} 5...
Nc6 {[%clk 0:02:34.9]} 6. e3 {[%clk 0:02:57.4]} 6... e5 {[%clk 0:02:33.6]} 7.
exd4 {[%clk 0:02:56.9]} 7... cxd4 {[%clk 0:02:34.5]} 8. Re1 {[%clk 0:02:56]}
8... Bd6 {[%clk 0:02:31.2]} 9. b4 {[%clk 0:02:54.1]} 9... Nxb4 {[%clk
0:02:20.6]} 10. Nxe5 {[%clk 0:02:48.9]} 10... O-O {[%clk 0:02:20.6]} 11. a3
{[%clk 0:02:39.5]} 11... Na6 {[%clk 0:02:17]} 12. d3 {[%clk 0:02:38.4]} 12...
Nc5 {[%clk 0:02:12.5]} 13. Bf4 {[%clk 0:02:34.4]} 13... Rb8 {[%clk 0:02:01.3]}
14. Nd2 {[%clk 0:02:32.5]} 14... Bf5 {[%clk 0:01:49.6]} 15. Nb3 {[%clk
0:02:14.9]} 15... Nxb3 {[%clk 0:01:19.7]} 16. Qxb3 {[%clk 0:02:13.7]} 16... Qc7
{[%clk 0:01:13.4]} 17. Re2 {[%clk 0:01:34.5]} 17... Nh5 {[%clk 0:00:38.2]} 18.
Rae1 {[%clk 0:01:26.4]} 18... Nxf4 {[%clk 0:00:36.9]} 19. gxf4 {[%clk
0:01:27.3]} 19... h6 {[%clk 0:00:34.1]} 20. Bd5 {[%clk 0:01:24]} 20... b6 {[%clk
0:00:20.2]} 21. f3 {[%clk 0:01:12.7]} 21... Kh8 {[%clk 0:00:17.4]} 22. c5 {[%clk
0:01:09.5]} 22... bxc5 {[%clk 0:00:11.5]} 23. Qc4 {[%clk 0:01:07.8]} 23... f6
{[%clk 0:00:07]} 24. Nf7+ {[%clk 0:01:06.9]} 24... Kh7 {[%clk 0:00:05.2]} 25.
Nxd6 {[%clk 0:00:57]} 25... Qxd6 {[%clk 0:00:06.1]} 26. Be4 {[%clk 0:00:57.1]}
26... Qxf4 {[%clk 0:00:05.4]} 27. Qc1 {[%clk 0:00:50.4]} 27... Qg5+ {[%clk
0:00:01.5]} 28. Kh1 {[%clk 0:00:46.3]} 28... Bxe4 {[%clk 0:00:01.9]} 29. Rxe4
{[%clk 0:00:42.2]} 29... Qxc1 {[%clk 0:00:02.6]} 30. Rxc1 {[%clk 0:00:42.7]}
30... Rb3 {[%clk 0:00:03]} 31. Re7 {[%clk 0:00:34.5]} 31... Rxa3 {[%clk
0:00:03]} 32. Rxc5 {[%clk 0:00:30.8]} 32... Rxd3 {[%clk 0:00:03.2]} 33. Kg2
{[%clk 0:00:26.8]} 33... Rd2+ {[%clk 0:00:01.7]} 34. Kg3 {[%clk 0:00:26.4]}
34... Rg8 {[%clk 0:00:02.4]} 35. Rxa7 {[%clk 0:00:24.5]} 35... d3 {[%clk
0:00:02.3]} 36. Rd5 {[%clk 0:00:25.1]} 36... Kg6 {[%clk 0:00:02.1]} 37. h4
{[%clk 0:00:24.4]} 37... Rd1 {[%clk 0:00:01.8]} 38. h5+ {[%clk 0:00:23.2]} 38...
Kh7 {[%clk 0:00:02.5]} 39. Kf4 {[%clk 0:00:22.3]} 39... d2 {[%clk 0:00:03]} 40.
Ra2 {[%clk 0:00:17.3]} 40... Re8 {[%clk 0:00:01.4]} 41. Raxd2 {[%clk 0:00:16.1]}
41... Rxd2 {[%clk 0:00:02.3]} 42. Rxd2 {[%clk 0:00:15.7]} 42... Ra8 {[%clk
0:00:03]} 43. Kg4 {[%clk 0:00:14.7]} 43... Ra5 {[%clk 0:00:03.6]} 44. f4 {[%clk
0:00:14.9]} 44... Rb5 {[%clk 0:00:03.3]} 45. Rd8 {[%clk 0:00:15.3]} 45... Ra5
{[%clk 0:00:03.6]} 46. Rc8 {[%clk 0:00:15.5]} 46... Rb5 {[%clk 0:00:04.2]} 47.
Rd8 {[%clk 0:00:15.4]} 47... Ra5 {[%clk 0:00:04.7]} 48. Re8 {[%clk 0:00:15.5]}
48... Rb5 {[%clk 0:00:05.1]} 49. Re3 {[%clk 0:00:14.7]} 49... Ra5 {[%clk
0:00:05.4]} 50. Rc3 {[%clk 0:00:14.5]} 50... Rb5 {[%clk 0:00:05.8]} 51. Ra3
{[%clk 0:00:14.6]} 51... Rc5 {[%clk 0:00:06]} 52. Rb3 {[%clk 0:00:14.5]} 52...
Ra5 {[%clk 0:00:06.4]} 53. Rb8 {[%clk 0:00:14.4]} 53... Rc5 {[%clk 0:00:06.3]}
54. Rd8 {[%clk 0:00:14.3]} 54... Ra5 {[%clk 0:00:06.5]} 1/2-1/2

[Event "Early-Titled-Tuesday-Blitz-December-26-2023"]
[Site "Chess.com"]
[Date "2023.12.26"]
[Round "2"]
[White "Shahdad2007"]
[Black "NoHeThTo"]
[Result "1-0"]
[WhiteElo "2310"]
[BlackElo "2677"]
[TimeControl "180+1"]
[EndTime "8:17:42 PST"]
[Termination "Shahdad2007 won by resignation"]

1. e4 {[%clk 0:03:00.9]} 1... c5 {[%clk 0:02:59.5]} 2. Nf3 {[%clk 0:03:01.2]}
2... g6 {[%clk 0:02:59.4]} 3. c4 {[%clk 0:02:51.3]} 3... Bg7 {[%clk 0:02:58.3]}
4. d4 {[%clk 0:02:51.8]} 4... cxd4 {[%clk 0:02:59.1]} 5. Nxd4 {[%clk 0:02:52]}
5... Nc6 {[%clk 0:02:59.7]} 6. Be3 {[%clk 0:02:52.3]} 6... Nf6 {[%clk
0:03:00.3]} 7. Nc3 {[%clk 0:02:52.3]} 7... Ng4 {[%clk 0:03:00.6]} 8. Qxg4 {[%clk
0:02:52]} 8... Nxd4 {[%clk 0:03:00.9]} 9. Qd1 {[%clk 0:02:52.7]} 9... Ne6 {[%clk
0:03:01.6]} 10. Rc1 {[%clk 0:02:51.8]} 10... Qa5 {[%clk 0:03:01.4]} 11. Qd2
{[%clk 0:02:44.9]} 11... O-O {[%clk 0:03:00.3]} 12. Be2 {[%clk 0:02:43.3]} 12...
d6 {[%clk 0:03:00.5]} 13. O-O {[%clk 0:02:37.2]} 13... Bd7 {[%clk 0:02:32]} 14.
Nd5 {[%clk 0:02:11.4]} 14... Qxd2 {[%clk 0:02:07.7]} 15. Nxe7+ {[%clk
0:02:11.3]} 15... Kh8 {[%clk 0:02:06.4]} 16. Bxd2 {[%clk 0:02:11.9]} 16... Rfe8
{[%clk 0:02:07]} 17. Nd5 {[%clk 0:02:08.9]} 17... Bc6 {[%clk 0:01:45.9]} 18. b3
{[%clk 0:01:54.4]} 18... Nd4 {[%clk 0:01:39.5]} 19. Bd3 {[%clk 0:01:51]} 19...
Bxd5 {[%clk 0:01:39.2]} 20. exd5 {[%clk 0:01:47.3]} 20... Ne2+ {[%clk
0:01:32.9]} 21. Bxe2 {[%clk 0:01:47.1]} 21... Rxe2 {[%clk 0:01:33.8]} 22. Rcd1
{[%clk 0:01:47.6]} 22... Bd4 {[%clk 0:01:32.4]} 23. a4 {[%clk 0:01:14.9]} 23...
Rae8 {[%clk 0:01:13.1]} 24. Bb4 {[%clk 0:01:15.1]} 24... Be5 {[%clk 0:01:11.3]}
25. f4 {[%clk 0:01:15.6]} 25... Bf6 {[%clk 0:01:08.4]} 26. Bxd6 {[%clk
0:01:15.8]} 26... Rb2 {[%clk 0:01:08.5]} 27. Be5 {[%clk 0:01:12.5]} 27... Bxe5
{[%clk 0:01:07.5]} 28. fxe5 {[%clk 0:01:12.6]} 28... Rxe5 {[%clk 0:01:07.4]} 29.
Rf2 {[%clk 0:01:09]} 29... Rxb3 {[%clk 0:01:05.7]} 30. Rxf7 {[%clk 0:01:08.9]}
30... Kg8 {[%clk 0:01:00.7]} 31. Rf2 {[%clk 0:01:05.5]} 31... Rb4 {[%clk
0:00:51.1]} 32. d6 {[%clk 0:01:03.5]} 32... Re8 {[%clk 0:00:50.4]} 33. d7 {[%clk
0:00:45.5]} 33... Rd8 {[%clk 0:00:50.3]} 34. Re2 {[%clk 0:00:46.1]} 34... Kf7
{[%clk 0:00:48.5]} 35. Rf1+ {[%clk 0:00:46.7]} 35... Kg7 {[%clk 0:00:48.1]} 36.
Re7+ {[%clk 0:00:47.4]} 36... Kh6 {[%clk 0:00:48.4]} 37. Rff7 {[%clk 0:00:47]}
37... Rb1+ {[%clk 0:00:43.6]} 38. Kf2 {[%clk 0:00:47.5]} 38... Rd1 {[%clk
0:00:43.4]} 39. h4 {[%clk 0:00:44.3]} 39... Kh5 {[%clk 0:00:43.2]} 40. Rxh7+
{[%clk 0:00:41.5]} 40... Kg4 {[%clk 0:00:43.3]} 41. Reg7 {[%clk 0:00:21.5]}
41... Kf5 {[%clk 0:00:36.6]} 42. Kf3 {[%clk 0:00:21.9]} 42... Rd3+ {[%clk
0:00:35.4]} 43. Ke2 {[%clk 0:00:21.8]} 43... Rd4 {[%clk 0:00:33.2]} 44. Rf7+
{[%clk 0:00:19.6]} 44... Kg4 {[%clk 0:00:30.3]} 45. Rhg7 {[%clk 0:00:19.2]}
45... Rd6 {[%clk 0:00:26.7]} 46. c5 {[%clk 0:00:18.8]} 46... Re6+ {[%clk
0:00:26.4]} 47. Kd3 {[%clk 0:00:19.1]} 47... Kg3 {[%clk 0:00:23.8]} 48. Re7
{[%clk 0:00:19.3]} 48... Rxe7 {[%clk 0:00:19.5]} 49. Rxe7 {[%clk 0:00:20.2]}
49... Kxg2 {[%clk 0:00:20.4]} 50. Kd4 {[%clk 0:00:20.5]} 50... Kg3 {[%clk
0:00:20.4]} 51. Kd5 {[%clk 0:00:21]} 51... Kxh4 {[%clk 0:00:20.8]} 52. Kd6
{[%clk 0:00:21.6]} 52... g5 {[%clk 0:00:20.6]} 53. Re8 {[%clk 0:00:22.3]} 53...
Rxd7+ {[%clk 0:00:20.5]} 54. Kxd7 {[%clk 0:00:23.1]} 54... g4 {[%clk 0:00:21.4]}
55. Rh8+ {[%clk 0:00:23.3]} 55... Kg3 {[%clk 0:00:21.5]} 56. Rg8 {[%clk
0:00:23.8]} 56... b6 {[%clk 0:00:21.4]} 57. cxb6 {[%clk 0:00:23.8]} 57... axb6
{[%clk 0:00:22.3]} 58. Kc6 {[%clk 0:00:24.5]} 58... b5 {[%clk 0:00:22.9]} 59.
Kxb5 {[%clk 0:00:24.9]} 59... Kf2 {[%clk 0:00:22.8]} 60. a5 {[%clk 0:00:25.8]}
60... g3 {[%clk 0:00:23.6]} 61. a6 {[%clk 0:00:26.3]} 61... g2 {[%clk
0:00:24.5]} 62. Rxg2+ {[%clk 0:00:26.4]} 62... Kxg2 {[%clk 0:00:24.7]} 63. a7
{[%clk 0:00:27.3]} 63... Kf2 {[%clk 0:00:25.6]} 64. a8=Q {[%clk 0:00:28.2]}
64... Ke3 {[%clk 0:00:26.5]} 65. Kc4 {[%clk 0:00:28.9]} 1-0

[Event "Early-Titled-Tuesday-Blitz-December-26-2023"]
[Site "Chess.com"]
[Date "2023.12.26"]
[Round "2"]
[White "margarita_2703"]
[Black "Zavgorodniy_Sergiy"]
[Result "1/2-1/2"]
[WhiteElo "2322"]
[BlackElo "2606"]
[TimeControl "180+1"]
[EndTime "8:17:42 PST"]
[Termination "Game drawn by repetition"]

1. e4 {[%clk 0:03:00.9]} 1... c6 {[%clk 0:03:00.2]} 2. d4 {[%clk 0:02:26.1]}
2... d5 {[%clk 0:02:59.6]} 3. e5 {[%clk 0:02:26.4]} 3... Bf5 {[%clk 0:02:59.1]}
4. Ne2 {[%clk 0:02:27]} 4... e6 {[%clk 0:02:58.8]} 5. Ng3 {[%clk 0:02:27.6]}
5... Bg6 {[%clk 0:02:59]} 6. h4 {[%clk 0:02:28.3]} 6... h6 {[%clk 0:02:59.4]} 7.
h5 {[%clk 0:02:29.2]} 7... Bh7 {[%clk 0:02:59.9]} 8. Bd3 {[%clk 0:02:29.8]} 8...
Bxd3 {[%clk 0:02:59.9]} 9. cxd3 {[%clk 0:02:30.7]} 9... Qb6 {[%clk 0:02:59.4]}
10. Be3 {[%clk 0:02:30.7]} 10... Nd7 {[%clk 0:02:56.7]} 11. Nd2 {[%clk
0:02:28.3]} 11... c5 {[%clk 0:02:50]} 12. Nb3 {[%clk 0:02:25.6]} 12... cxd4
{[%clk 0:02:31.7]} 13. Bxd4 {[%clk 0:02:25.5]} 13... Bb4+ {[%clk 0:02:27.7]} 14.
Ke2 {[%clk 0:02:17.5]} 14... Qa6 {[%clk 0:02:21.1]} 15. a3 {[%clk 0:02:15.5]}
15... Bf8 {[%clk 0:02:16.8]} 16. f4 {[%clk 0:02:14.6]} 16... Ne7 {[%clk
0:02:15.4]} 17. Kf2 {[%clk 0:02:13.7]} 17... Nc6 {[%clk 0:02:13.9]} 18. Be3
{[%clk 0:02:11.8]} 18... Be7 {[%clk 0:02:07.3]} 19. d4 {[%clk 0:02:11.5]} 19...
f5 {[%clk 0:01:54.6]} 20. Rc1 {[%clk 0:02:03.3]} 20... O-O {[%clk 0:01:49.5]}
21. Ne2 {[%clk 0:02:00.5]} 21... Rac8 {[%clk 0:01:39]} 22. Rg1 {[%clk
0:01:54.3]} 22... Nb6 {[%clk 0:01:24.2]} 23. g4 {[%clk 0:01:47.7]} 23... Nc4
{[%clk 0:01:19.4]} 24. gxf5 {[%clk 0:01:44.8]} 24... Rxf5 {[%clk 0:01:17.6]} 25.
Rc2 {[%clk 0:01:39.7]} 25... Nxe3 {[%clk 0:01:09.5]} 26. Kxe3 {[%clk 0:01:40.6]}
26... Rcf8 {[%clk 0:01:07.7]} 27. Nc5 {[%clk 0:01:36.2]} 27... Bxc5 {[%clk
0:01:05.7]} 28. Rxc5 {[%clk 0:01:37.1]} 28... Rxh5 {[%clk 0:00:56.8]} 29. Qf1
{[%clk 0:01:28.3]} 29... Ne7 {[%clk 0:00:41.9]} 30. Rc7 {[%clk 0:01:23.7]} 30...
Nf5+ {[%clk 0:00:41.9]} 31. Kd2 {[%clk 0:01:16.3]} 31... Qa5+ {[%clk 0:00:42]}
32. Rc3 {[%clk 0:01:13.9]} 32... Rh2 {[%clk 0:00:40]} 33. Rg2 {[%clk 0:01:13.4]}
33... Rxg2 {[%clk 0:00:38.4]} 34. Qxg2 {[%clk 0:01:14.3]} 34... Rc8 {[%clk
0:00:37]} 35. b4 {[%clk 0:01:13.9]} 35... Qd8 {[%clk 0:00:36.6]} 36. Qg6 {[%clk
0:01:11.7]} 36... Qd7 {[%clk 0:00:34.5]} 37. Rxc8+ {[%clk 0:01:07.6]} 37... Qxc8
{[%clk 0:00:35.4]} 38. Kd3 {[%clk 0:01:08.4]} 38... Qc4+ {[%clk 0:00:29.3]} 39.
Kd2 {[%clk 0:01:06.2]} 39... Nxd4 {[%clk 0:00:29.4]} 40. Ng3 {[%clk 0:00:40.3]}
40... Qa2+ {[%clk 0:00:25.7]} 41. Ke3 {[%clk 0:00:38.1]} 41... Nc2+ {[%clk
0:00:22.5]} 42. Kf3 {[%clk 0:00:37.7]} 42... Ne1+ {[%clk 0:00:19.9]} 43. Kg4
{[%clk 0:00:37.2]} 43... d4 {[%clk 0:00:19.4]} 44. f5 {[%clk 0:00:14.8]} 44...
exf5+ {[%clk 0:00:17.4]} 45. Qxf5 {[%clk 0:00:15.2]} 45... Qf7 {[%clk
0:00:15.5]} 46. Qc8+ {[%clk 0:00:13.8]} 46... Kh7 {[%clk 0:00:15.9]} 47. e6
{[%clk 0:00:13.8]} 47... Qg6+ {[%clk 0:00:14.6]} 48. Kh3 {[%clk 0:00:14]} 48...
Nf3 {[%clk 0:00:13.4]} 49. e7 {[%clk 0:00:13.6]} 49... Ng5+ {[%clk 0:00:13.6]}
50. Kg2 {[%clk 0:00:13.6]} 50... Qf6 {[%clk 0:00:11.3]} 51. e8=Q {[%clk
0:00:13.1]} 51... Qf3+ {[%clk 0:00:11.1]} 52. Kh2 {[%clk 0:00:13.1]} 52... Qf2+
{[%clk 0:00:11.6]} 53. Kh1 {[%clk 0:00:13.5]} 53... Qf3+ {[%clk 0:00:11.8]} 54.
Kh2 {[%clk 0:00:13.7]} 54... Qf2+ {[%clk 0:00:12.1]} 55. Kh1 {[%clk 0:00:14.2]}
55... Qf3+ {[%clk 0:00:11]} 56. Kh2 {[%clk 0:00:14.5]} 1/2-1/2

[Event "Early-Titled-Tuesday-Blitz-December-26-2023"]
[Site "Chess.com"]
[Date "2023.12.26"]
[Round "2"]
[White "MidnightFox"]
[Black "DarkAlekhine"]
[Result "0-1"]
[WhiteElo "2500"]
[BlackElo "2723"]
[TimeControl "180+1"]
[EndTime "8:17:44 PST"]
[Termination "DarkAlekhine won by resignation"]

1. d4 {[%clk 0:03:00.3]} 1... g6 {[%clk 0:02:54.5]} 2. e4 {[%clk 0:02:58.4]}
2... Bg7 {[%clk 0:02:54.1]} 3. Nf3 {[%clk 0:02:58]} 3... d6 {[%clk 0:02:53.5]}
4. h3 {[%clk 0:02:57.5]} 4... Nf6 {[%clk 0:02:52.4]} 5. Nc3 {[%clk 0:02:55.3]}
5... O-O {[%clk 0:02:48.4]} 6. Be2 {[%clk 0:02:54.7]} 6... Nc6 {[%clk
0:02:48.1]} 7. O-O {[%clk 0:02:54.9]} 7... e5 {[%clk 0:02:46.9]} 8. d5 {[%clk
0:02:53.3]} 8... Ne7 {[%clk 0:02:46]} 9. Be3 {[%clk 0:02:48.2]} 9... h6 {[%clk
0:02:37.6]} 10. Qd2 {[%clk 0:02:48.1]} 10... Kh7 {[%clk 0:02:37.4]} 11. Ne1
{[%clk 0:02:37.2]} 11... c6 {[%clk 0:02:22.2]} 12. Rd1 {[%clk 0:02:24.5]} 12...
cxd5 {[%clk 0:02:19.5]} 13. exd5 {[%clk 0:02:24.3]} 13... Nf5 {[%clk 0:02:17.5]}
14. Nd3 {[%clk 0:02:15.1]} 14... Bd7 {[%clk 0:02:05.9]} 15. a4 {[%clk 0:02:10]}
15... a6 {[%clk 0:02:04.4]} 16. Bf3 {[%clk 0:02:00.5]} 16... Rc8 {[%clk
0:01:53.6]} 17. Ra1 {[%clk 0:01:56.6]} 17... Qc7 {[%clk 0:01:49.1]} 18. a5
{[%clk 0:01:51.9]} 18... Nxe3 {[%clk 0:01:48.7]} 19. Qxe3 {[%clk 0:01:52.8]}
19... Ng8 {[%clk 0:01:39.7]} 20. Qb6 {[%clk 0:01:25.3]} 20... f5 {[%clk
0:01:33.8]} 21. Be2 {[%clk 0:01:16.9]} 21... e4 {[%clk 0:01:07.7]} 22. Nf4
{[%clk 0:01:15.1]} 22... Qxb6 {[%clk 0:01:07.5]} 23. axb6 {[%clk 0:01:15.2]}
23... Bxc3 {[%clk 0:01:08]} 24. bxc3 {[%clk 0:01:16]} 24... Rxc3 {[%clk
0:01:08.6]} 25. Rfc1 {[%clk 0:01:10.4]} 25... Nf6 {[%clk 0:01:07.9]} 26. Bf1
{[%clk 0:01:02.8]} 26... Rfc8 {[%clk 0:01:07.9]} 27. Ra2 {[%clk 0:01:02.1]}
27... g5 {[%clk 0:01:00.6]} 28. Ne2 {[%clk 0:01:01.1]} 28... R3c5 {[%clk
0:01:00.7]} 29. Nd4 {[%clk 0:00:37.8]} 29... Nxd5 {[%clk 0:00:56.9]} 30. Nb3
{[%clk 0:00:36.7]} 30... Nb4 {[%clk 0:00:45.1]} 31. Rb2 {[%clk 0:00:31.7]} 31...
Rxc2 {[%clk 0:00:44.3]} 32. Rcxc2 {[%clk 0:00:31.9]} 32... Rxc2 {[%clk
0:00:44.7]} 33. Rxc2 {[%clk 0:00:32.3]} 33... Nxc2 {[%clk 0:00:44.7]} 34. Na5
{[%clk 0:00:33.2]} 34... Bc8 {[%clk 0:00:43.3]} 35. Bc4 {[%clk 0:00:30.5]} 35...
Nb4 {[%clk 0:00:38.3]} 36. Kf1 {[%clk 0:00:20.2]} 36... d5 {[%clk 0:00:37.8]}
37. Bb3 {[%clk 0:00:20.6]} 37... Kg6 {[%clk 0:00:37.3]} 38. Ke2 {[%clk
0:00:20.8]} 38... Kf6 {[%clk 0:00:36.8]} 39. Ke3 {[%clk 0:00:19.2]} 39... Ke5
{[%clk 0:00:36.7]} 40. f4+ {[%clk 0:00:19.3]} 40... gxf4+ {[%clk 0:00:36.5]} 41.
Kd2 {[%clk 0:00:20.1]} 41... d4 {[%clk 0:00:35.9]} 42. Nc4+ {[%clk 0:00:18.8]}
42... Kf6 {[%clk 0:00:34]} 43. Nd6 {[%clk 0:00:18.5]} 43... Be6 {[%clk 0:00:32]}
44. Bxe6 {[%clk 0:00:17.2]} 44... Kxe6 {[%clk 0:00:32.9]} 45. Nxb7 {[%clk
0:00:18]} 45... Kd5 {[%clk 0:00:27.6]} 46. Na5 {[%clk 0:00:16.4]} 46... e3+
{[%clk 0:00:24.3]} 47. Kd1 {[%clk 0:00:15.3]} 47... Nc6 {[%clk 0:00:13.2]} 48.
b7 {[%clk 0:00:14.1]} 48... Nb8 {[%clk 0:00:13.5]} 49. Nb3 {[%clk 0:00:09]}
49... d3 {[%clk 0:00:12.8]} 50. Ke1 {[%clk 0:00:08.1]} 50... Kc4 {[%clk
0:00:12.3]} 51. Na5+ {[%clk 0:00:05.3]} 51... Kb4 {[%clk 0:00:12.6]} 0-1

[Event "Early-Titled-Tuesday-Blitz-December-26-2023"]
[Site "Chess.com"]
[Date "2023.12.26"]
[Round "2"]
[White "Viktor_Poddubnyi"]
[Black "Manukyan_Artak"]
[Result "1-0"]
[WhiteElo "2375"]
[BlackElo "2619"]
[TimeControl "180+1"]
[EndTime "8:17:49 PST"]
[Termination "Viktor_Poddubnyi won by checkmate"]

1. e4 {[%clk 0:03:00.9]} 1... c6 {[%clk 0:02:59.7]} 2. d4 {[%clk 0:03:00.5]}
2... d5 {[%clk 0:03:00.6]} 3. exd5 {[%clk 0:03:00.8]} 3... cxd5 {[%clk
0:03:00.6]} 4. c4 {[%clk 0:03:01.3]} 4... Nf6 {[%clk 0:02:59.8]} 5. Nc3 {[%clk
0:03:01.7]} 5... g6 {[%clk 0:03:00.1]} 6. Qb3 {[%clk 0:03:01.1]} 6... Bg7 {[%clk
0:02:59.8]} 7. cxd5 {[%clk 0:03:01.1]} 7... O-O {[%clk 0:03:00.3]} 8. Be2 {[%clk
0:03:01.6]} 8... Nbd7 {[%clk 0:02:53.8]} 9. Bf3 {[%clk 0:03:00.9]} 9... Nb6
{[%clk 0:02:53.3]} 10. Nge2 {[%clk 0:03:01.3]} 10... Bf5 {[%clk 0:02:52.9]} 11.
O-O {[%clk 0:02:51.2]} 11... Bd3 {[%clk 0:02:52.5]} 12. d6 {[%clk 0:02:48.3]}
12... exd6 {[%clk 0:02:49.4]} 13. Bxb7 {[%clk 0:02:47.1]} 13... Rb8 {[%clk
0:02:49.3]} 14. Bf3 {[%clk 0:02:47.2]} 14... Re8 {[%clk 0:02:40.7]} 15. Qd1
{[%clk 0:02:44.1]} 15... Ba6 {[%clk 0:02:35.3]} 16. Re1 {[%clk 0:02:35.1]} 16...
Nc4 {[%clk 0:02:30.6]} 17. b3 {[%clk 0:02:30.3]} 17... Na5 {[%clk 0:02:28.3]}
18. Bf4 {[%clk 0:02:03.2]} 18... Bb7 {[%clk 0:02:19.3]} 19. Bxb7 {[%clk
0:01:56.1]} 19... Nxb7 {[%clk 0:02:04.3]} 20. Qd2 {[%clk 0:01:55.2]} 20... Rc8
{[%clk 0:02:01]} 21. Rac1 {[%clk 0:01:45.4]} 21... d5 {[%clk 0:02:01.1]} 22. Be5
{[%clk 0:01:37.8]} 22... Nd6 {[%clk 0:02:00.6]} 23. f3 {[%clk 0:01:30.3]} 23...
Nf5 {[%clk 0:01:57]} 24. Ng3 {[%clk 0:01:23.2]} 24... Bh6 {[%clk 0:01:45.8]} 25.
f4 {[%clk 0:00:41]} 25... Nxg3 {[%clk 0:01:40.4]} 26. hxg3 {[%clk 0:00:40.4]}
26... Ng4 {[%clk 0:01:38.1]} 27. Qd1 {[%clk 0:00:24.4]} 27... f5 {[%clk
0:01:34.5]} 28. Qf3 {[%clk 0:00:20.4]} 28... Nxe5 {[%clk 0:01:29.8]} 29. dxe5
{[%clk 0:00:19]} 29... d4 {[%clk 0:01:29.4]} 30. Nd5 {[%clk 0:00:16.9]} 30...
Bg7 {[%clk 0:01:22.8]} 31. Rxc8 {[%clk 0:00:14.6]} 31... Qxc8 {[%clk 0:01:22.6]}
32. Qd3 {[%clk 0:00:14.3]} 32... Qc5 {[%clk 0:01:19.9]} 33. Qc4 {[%clk
0:00:13.8]} 33... Qxc4 {[%clk 0:01:05.3]} 34. bxc4 {[%clk 0:00:14.7]} 34... Kf7
{[%clk 0:01:03.2]} 35. Rd1 {[%clk 0:00:14.4]} 35... Bf8 {[%clk 0:01:03.5]} 36.
Kf1 {[%clk 0:00:13]} 36... Bc5 {[%clk 0:01:03.1]} 37. Rb1 {[%clk 0:00:12.7]}
37... d3 {[%clk 0:00:52.7]} 38. Rb7+ {[%clk 0:00:11.7]} 38... Kf8 {[%clk
0:00:44.9]} 39. Nf6 {[%clk 0:00:11.9]} 39... Rd8 {[%clk 0:00:40.4]} 40. Nxh7+
{[%clk 0:00:07.4]} 40... Kg8 {[%clk 0:00:38.2]} 41. Nf6+ {[%clk 0:00:07.5]}
41... Kf8 {[%clk 0:00:38.7]} 42. Rd7 {[%clk 0:00:05.6]} 42... Rb8 {[%clk
0:00:33.2]} 43. Rxd3 {[%clk 0:00:05.5]} 43... Rb1+ {[%clk 0:00:33.2]} 44. Ke2
{[%clk 0:00:04.8]} 44... Rb2+ {[%clk 0:00:33.6]} 45. Rd2 {[%clk 0:00:04.7]}
45... Rb4 {[%clk 0:00:30.4]} 46. Nd7+ {[%clk 0:00:04.4]} 46... Ke7 {[%clk
0:00:30.5]} 47. Nxc5 {[%clk 0:00:05.3]} 47... Rxc4 {[%clk 0:00:30.1]} 48. Nd3
{[%clk 0:00:05.1]} 48... a5 {[%clk 0:00:26.7]} 49. Rb2 {[%clk 0:00:05.4]} 49...
Ke6 {[%clk 0:00:25.8]} 50. Kd2 {[%clk 0:00:05.6]} 50... Kd5 {[%clk 0:00:26.7]}
51. Rb8 {[%clk 0:00:04.9]} 51... Ra4 {[%clk 0:00:26.7]} 52. Rd8+ {[%clk
0:00:04.8]} 52... Ke4 {[%clk 0:00:25.6]} 53. Nc5# {[%clk 0:00:04.6]} 1-0